Cogmind - Beta 15 @@@ ROGUE MODE // 2025.09.30 @ 09:33:56 Player: Tereza Result: Self-destructed Performance ------------- Evolutions (1) 500 Regions Visited (2) 400 Robots Destroyed (22) 110 Value Destroyed (275) 275 Prototype IDs (0) 0 Alien Tech Used (0) 0 Bonus (0) 0 TOTAL SCORE: 1285 Bonus ------- None Cogmind --------- Core Integrity 384/400 Matter 170/300 Energy 250/250 System Corruption 0% Temperature Cool (0) Movement Treading (320) Ox2 Location -9/Materials Parts ------- > --- POWER (1) -------- Ion Engine > --- PROPULSION (3) --- Light Treads Light Treads > --- UTILITY (3) ------ Huge Storage Unit Targeting Computer > --- WEAPON (2) ------- Shotgun Shotgun > --- INVENTORY (25) --- Light Ion Engine Light Treads Large Storage Unit High-capacity Storage Unit Medium Matter Pod (87) Large Matter Pod (0) Structural Scanner Beam Cannon Beam Cannon Beam Cannon Assault Rifle Assault Rifle Light Assault Rifle Shotgun Shotgun Grenade Launcher Grenade Launcher Datajack Mining Claw Peak State ------------ > --- POWER ------------ Ion Engine > --- PROPULSION ------- Light Treads Light Treads > --- UTILITY ---------- Huge Storage Unit Targeting Computer > --- WEAPON ----------- Shotgun Shotgun > --- INVENTORY -------- Light Ion Engine Light Treads Large Storage Unit High-capacity Storage Unit Medium Matter Pod Structural Scanner Beam Cannon Beam Cannon Beam Cannon Assault Rifle Assault Rifle Light Assault Rifle Shotgun Shotgun Grenade Launcher Grenade Launcher Datajack Mining Claw [Rating: 11] Favorites ----------- Power Ion Engine Engine Ion Engine Propulsion Light Treads Treads Light Treads Utility Small Storage Unit Device Seismic Detector Storage Small Storage Unit Processor Targeting Computer Weapon Shotgun Energy Gun Small Laser Ballistic Gun Shotgun Launcher Grenade Launcher Build | -11 -10 -9 ------- Run | Yrd Mat Mat Slots Evolved 2 | . . 2 Power . | . . . Propulsion 1 | . . 1 Utility 1 | . . 1 Weapon . | . . . Parts Attached 16 | 7 9 . Power 1 | 1 . . Engine 1 | 1 . . Core . | . . . Reactor . | . . . Propulsion 3 | 2 1 . Treads 3 | 2 1 . Leg . | . . . Wheel . | . . . Hover . | . . . Flight . | . . . Utility 5 | 2 3 . Device 1 | 1 . . Storage 3 | 1 2 . Processor 1 | . 1 . Hackware . | . . . Protection . | . . . Artifact . | . . . Weapon 7 | 2 5 . Energy Gun 1 | 1 . . Energy Cannon . | . . . Ballistic Gun 5 | 1 4 . Ballistic Cannon . | . . . Launcher 1 | . 1 . Special Weapon . | . . . Impact Weapon . | . . . Slashing Weapon . | . . . Piercing Weapon . | . . . Special Melee Weapon . | . . . Unidentified Prototypes . | . . . Parts Lost 2 | . 2 . Power . | . . . Propulsion . | . . . Utility 1 | . 1 . Weapon 1 | . 1 . Highest Loss Streak 1 | . 1 . To Critical Strikes . | . . . Average Backups 11 | 3 12 19 Power . | . 1 1 Propulsion 1 | 1 1 1 Utility 2 | . 2 5 Weapon 6 | . 6 11 Tool/Special . | . . . Unused Backups 23 | . 7 16 Power 1 | . . 1 Propulsion 2 | . 2 . Utility 5 | . 1 4 Weapon 14 | . 4 10 Tool/Special 1 | . . 1 Average Slot Usage (%) 92 | . 92 77 Engine 13 | . 14 11 Treads 27 | . 27 22 Device 1 | . 1 . Storage 13 | . 14 11 Processor 5 | . 5 11 Ballistic Gun 26 | . 27 22 Peak Build Rating 11 | 7 11 11 Average Rating 8 | 4 8 11 On Entrance 6 | . 7 11 Naked Turns . | . . . Heaviest Build 91 | 13 91 91 Greatest Support 40 | 40 40 40 Greatest Overweight (x) 4 | 1 4 2 Average Overweight (x) . | . . 2 Largest Inventory Capacity 25 | 8 25 25 Average Capacity 15 | 7 16 25 Most Carried 19 | 5 19 19 Average Carried 11 | 3 12 19 Final Capacity 25 | 8 25 25 Final Carried 19 | 4 19 19 Class Distribution -------------------- 100% | Mutant Dominant Class ---------------- Mutant | -10/Materials Mutant | -9/Materials Resources | -11 -10 -9 ----------- Run | Yrd Mat Mat Matter Collected 572 | 274 298 . Remotely . | . . . Salvage Created 550 | 121 429 . Parts 50 | 7 43 . Haulers Intercepted 2 | . 2 . Recyclers Shooed . | . . . Parts Field Recycled . | . . . Retrieved Matter . | . . . Parts Self-Destructed . | . . . Prevented . | . . . Kills | -11 -10 -9 ------- Run | Yrd Mat Mat Combat Hostiles Destroyed 13 | . 13 . Guns 11 | . 11 . AOE 2 | . 2 . Classes Destroyed 7 | 2 5 . Worker 2 | . 2 . Tunneler 3 | 1 2 . Hauler 2 | . 2 . Recycler 1 | 1 . . Watcher 1 | . 1 . Swarmer 9 | . 9 . Grunt 4 | . 4 . Best Kill Streak 4 | 2 4 . Combat Bots Only 4 | . 4 . Max Kills in Single Turn 3 | 1 3 . Gunslinging . | . . . Exploded 2 | . 2 . Melee . | . . . Uniques/NPCs Destroyed . | . . . Combat | -11 -10 -9 -------- Run | Yrd Mat Mat Hostile Shots Fired 87 | . 85 2 Missed 13 | . 13 . Hits 74 | . 72 2 Projectile 74 | . 72 2 Damage Taken 676 | . 646 30 Core 100 | . 84 16 Absorbed by Shields . | . . . Core Remaining (%) 83 | 100 66 . Volleys Fired 66 | 4 59 3 Largest 2 | 2 2 2 Hottest 60 | 60 60 46 Shots Fired 131 | 8 117 6 Gun 130 | 8 116 6 Cannon . | . . . Launcher 1 | . 1 . Special . | . . . Kinetic 116 | 4 106 6 Thermal 14 | 4 10 . Explosive 1 | . 1 . Electromagnetic . | . . . Robot Hit Streak 8 | 7 8 6 Robot Miss Streak 6 | . 6 3 Penetration Max . | . . . Secondary Targets . | . . . Shots Hit Robots 80 | 7 68 5 Core Hits 42 | 4 35 3 Critical Kills 1 | . 1 . Critical Parts Destroyed . | . . . Critical Strikes 1 | . 1 . Destroy 1 | . 1 . Melee Attacks . | . . . Impact . | . . . Slashing . | . . . Piercing . | . . . Sneak Attacks . | . . . Combat Hostiles . | . . . Follow-up Attacks . | . . . Damage Inflicted 957 | 64 799 94 Guns 874 | 63 721 90 Cannons . | . . . Explosions 78 | . 78 . Melee . | . . . Ramming 5 | 1 . 4 Kinetic 775 | 29 656 90 Thermal 99 | 34 65 . Explosive 78 | . 78 . Electromagnetic . | . . . Impact . | . . . Slashing . | . . . Piercing . | . . . Highest Corruption . | . . . Average Corruption . | . . . Corruption Purged . | . . . Corruption Blocked . | . . . Overload Shots . | . . . Overflow Damage 16 | . 16 . Projectiles . | . . . Explosions 16 | . 16 . Melee . | . . . Knockbacks . | . . . Impact . | . . . Kinetic . | . . . Secondary . | . . . Self-Inflicted Damage . | . . . Shots . | . . . Rammed 2 | 1 . 1 Targets Rammed 2 | 1 . 1 Kicked . | . . . Crushed . | . . . Highest Temperature 46 | 20 46 1 Average Temperature 14 | 15 14 1 Received Heat Transfer 108 | . 90 18 Siege Activations . | . . . Martial Activations . | . . . Shielding Activations . | . . . Robots Disrupted . | . . . Combat Hostiles . | . . . Robots Corrupted . | . . . Combat Hostiles . | . . . Parts Fried . | . . . Impact Corruptions . | . . . Robots Melted . | . . . Combat Hostiles . | . . . Parts Melted . | . . . Heat Transferred 225 | 75 150 . Parts Sabotaged . | . . . Parts Stolen . | . . . Parts Stripped . | . . . Power Chain Reactions . | . . . Alert | -11 -10 -9 ------- Run | Yrd Mat Mat Maximum Alert Level . | . . . Low Security (%) 100 | 100 100 100 Level 1 . | . . . Level 2 . | . . . Level 3 . | . . . Level 4 . | . . . Level 5 . | . . . High Security . | . . . Max Security . | . . . Peak Influence 155 | 5 155 . Initial . | . . . Average 44 | . 48 . Influence Increases 455 | 10 445 . Destroy 0b10 Robot/C 260 | . 260 . Destroy 0b10 Robot/NC 45 | 10 35 . Destroy Leader 56 | . 56 . Successful Hack 27 | . 27 . Destroy Structure 7 | . 7 . Lose Combat Pursuer 60 | . 60 . Influence Decreases 455 | 10 445 . Time Decay 435 | 10 425 . Lost Part 20 | . 20 . Squads Dispatched 3 | . 2 1 Investigation . | . . . Extermination . | . . . Reinforcement 3 | . 2 1 Assault . | . . . Garrison . | . . . Intercept . | . . . Searches Triggered . | . . . Construction Impeded . | . . . Haulers Reinforced . | . . . Active Scanning Responses . | . . . Cargo Convoy Interrupts . | . . . Stealth | -11 -10 -9 --------- Run | Yrd Mat Mat Distress Signals 1 | . 1 . Communications Jammed . | . . . Distress Signals . | . . . Times Spotted 32 | . 28 4 Peak Tracking Total 5 | . 5 3 Tactical Retreats 2 | . 2 . Traps | -11 -10 -9 ------- Run | Yrd Mat Mat Traps Triggered 2 | . 2 . Indirectly . | . . . Trap Hack Attempts . | . . . Triggered . | . . . Disarmed . | . . . Reprogrammed . | . . . Reused . | . . . Traps Extracted . | . . . Installed . | . . . Triggered . | . . . Machines | -11 -10 -9 ---------- Run | Yrd Mat Mat Machines Disabled . | . . . Max in Single Turn . | . . . Machines Repaired . | . . . Machines Dismantled . | . . . Machines Sabotaged . | . . . Overloaded Fab Kills . | . . . Hacking | -11 -10 -9 --------- Run | Yrd Mat Mat Machines Accessed 8 | . 8 . Terminals 6 | . 6 . Fabricators . | . . . Repair Stations 1 | . 1 . Recycling Units 1 | . 1 . Scanalyzers . | . . . Garrison Access . | . . . Total Hacks 22 | . 22 . Successful 7 | . 7 . Failed 14 | . 14 . Catastrophic 1 | . 1 . Database Lockouts 1 | . 1 . Manual 9 | . 9 . Terminals 14 | . 14 . Fabricators . | . . . Repair Stations 5 | . 5 . Recycling Units 3 | . 3 . Scanalyzers . | . . . Garrison Access . | . . . Terminal Hacks 3 | . 3 . Robot Analysis 2 | . 2 . Locate Traps 1 | . 1 . Fabricator Hacks . | . . . Repair Station Hacks 1 | . 1 . Scan Component 1 | . 1 . Recycling Unit Hacks 2 | . 2 . Report Inventory 1 | . 1 . Retrieve Components 1 | . 1 . Scanalyzer . | . . . Garrison Access Hacks . | . . . Unauthorized Hacks 1 | . 1 . Terminals 1 | . 1 . Botnet 1 | . 1 . Fabricators . | . . . Repair Stations . | . . . Recycling Units . | . . . Scanalyzers . | . . . Garrison Access . | . . . Data Cores Recovered . | . . . Used . | . . . Hacking Detections 8 | . 8 . Full Trace Events 2 | . 2 . Feedback Events . | . . . Feedback Blocked . | . . . Robot Schematics Acquired . | . . . Robots Built . | . . . Authchips . | . . . Time . | . . . Total Robot Build Rating . | . . . Part Schematics Acquired . | . . . Parts Built . | . . . Authchips . | . . . Time . | . . . Total Part Build Rating . | . . . Parts Repaired . | . . . Time . | . . . Parts Recycled . | . . . Recycled Matter . | . . . Retrieved Matter . | . . . Retrieved Components 10 | . 10 . Parts Scanalyzed . | . . . Part Schematics Acquired . | . . . Parts Damaged . | . . . Bothacking | -11 -10 -9 ------------ Run | Yrd Mat Mat Used RIF Installer . | . . . Robots Hacked . | . . . Non-combat . | . . . Combat . | . . . Robot Hacks Applied . | . . . Relay Couplers Released . | . . . Fabnet Peak Effective % . | . . . Robots Rewired . | . . . Allies Hacked . | . . . Hacks Repelled . | . . . Allies | -11 -10 -9 -------- Run | Yrd Mat Mat Total Allies . | . . . Largest Group . | . . . Highest-Rated Group . | . . . Highest-Rated Ally . | . . . Total Orders . | . . . Ally Attacks . | . . . Total Damage . | . . . Kills . | . . . Allies Corrupted . | . . . Allies Melted . | . . . Intel | -11 -10 -9 ------- Run | Yrd Mat Mat Active Infowar (turns) 189 | 6 183 . Seismic 189 | 6 183 . Robot Analysis Total 2 | . 2 . Derelict Logs Recovered . | . . . Drone Launches . | . . . Drone Recoveries . | . . . Exploration | -11 -10 -9 ------------- Run | Yrd Mat Mat Turns Passed 1832 | 106 1688 38 Spaces Moved 778 | 52 720 6 Core 6 | 6 . . Treads 772 | 46 720 6 Legs . | . . . Wheels . | . . . Hover . | . . . Flight . | . . . Fastest Speed 50 | 50 160 320 Average Speed 202 | 152 204 320 Slowest Speed 480 | 160 480 320 Overloaded Moves . | . . . Propulsion Burnouts . | . . . Robots Hopped . | . . . Potential Cave-ins . | . . . Cave-ins Triggered . | . . . Exploration Rate (%) 34 | 5 96 3 Regions Visited 2 Branch Regions . Pre-discovered Areas . | . . . Known Exits Taken . | . . . Unknown Exits Taken 2 | 1 1 . Scrap Searched . | . . . Spaces Dug . | . . . Terrain Destroyed 7 | . 7 . Melee . | . . . Projectile . | . . . AOE 7 | . 7 . Terrain Rammed . | . . . Walls Destroyed . | . . . Machines Disabled . | . . . Actions | -11 -10 -9 --------- Run | Yrd Mat Mat Total 924 | 69 839 16 Wait 19 | . 13 6 Move 777 | 52 719 6 Hop . | . . . Pick Up 29 | 6 23 . Fast Attach 9 | 5 4 . Attach 4 | 2 2 . Detach 2 | . 2 . Swap 6 | . 6 . Drop 11 | . 11 . Fire 66 | 4 59 3 Melee . | . . . Ram . | . . . Kick . | . . . Crush 1 | . . 1 Escape Stasis . | . . . Rewire . | . . . Trap . | . . . Miscellaneous . | . . . Route ------- -11/Scrapyard -10/Materials (discovered 4 exits: [*Mat x3] / [*Min]) -9/Materials History --------- Turn | Location | Event 25 | -11/Scrapyard | Discovered new exit (range 16) 107 | -11/Scrapyard | Entered Materials 277 | -10/Materials | Discovered new exit (range 16) 315 | -10/Materials | Build established: Mutant 680 | -10/Materials | Discovered new exit (range 16) 907 | -10/Materials | Discovered new exit (range 15) 1074 | -10/Materials | Central database locked down 1444 | -10/Materials | Discovered new exit (range 5) 1795 | -10/Materials | Entered another Materials area 1795 | -9/Materials | Evolved 2 slots: Propulsion x1, Utility x1 1833 | -9/Materials | Self-destructed Last Messages --------------- 01362_ Acquired Hcp. Storage Unit. 01372_ Acquired Lgt. Assault Rifle. 01444_ EXIT=FOUND 01480_ T-07 Excavator is excavating. 01588_ Acquired Lrg. Matter Pod. 01781_ Triggered Blade Trap. 01781_ Massive razor-sharp blades shoot up from within the floor. 01781_ Shotgun severed. 01781_ Lgt. Treads severed. 01784_ Acquired Shotgun. 01790_ Acquired Lgt. Treads. PARAMETERS=PROPULSION+1,UTILITY+1 LOCATION=UNKNOWN GOAL=ESCAPE 01796_ O-16 Technician: "IFF HANDSHAKE FAILED. SECURING TERMINAL." 01799_ ALERT: Hostiles spotted, dispatching reinforcements to Terminal M010. 01811_ Slammed into O-16 Technician. Map ----- +----------------------------------------------------+ | | | ?????????????????????????????????? | | ?????????????????????????????????? | | ?????????????????????????????????? | | ?????????????????????????????????? | | ?????????????????????????????????? | | ?????????????????????????????????? | | ?????????????????????????????????? | | ?????????????????????????????????? | | ?????????????????????????????????? | | ?????????????????????????????????? | | ?????????????????????????????????? | | ?????????????????????????????????? | | ?????????????????????????????????? | | ?????????????????????????????????? | | ?????????????????????????????????? | | ?????????????????????????????????? | | ?????????????????????????????????? | | ?????????????????????????????????? | | ????????????????????????########## | | ????????????????????##### # | | ????????????????????# # """# | | ????????????????????# # """# | | ????????????????????# # """# | | ????????????????????+ g # | | ????????????????????# #@ """# | | ????????????????????# # """# | | ????????????????????# # """# | | ????????????????????# # # | | ????????????????????# ###"T"#### | | ????????????????????# #??####??? | | ????????????????????# #????????? | | ????????????????????# #????????? | | ????????????????????# #????????? | | ????????????????????# #????????? | | ????????????????????# ?????????? | | ????????????????????# ?????????? | | ????????????????????# ?????????? | | ????????????????????# ?????????? | | ????????????????????# ?????????? | | ????????????????????? ?????????? | | ?????????????????????????????????? | | ?????????????????????????????????? | | ?????????????????????????????????? | | ?????????????????????????????????? | | ?????????????????????????????????? | | ?????????????????????????????????? | | ?????????????????????????????????? | | ?????????????????????????????????? | | ?????????????????????????????????? | +----------------------------------------------------+ Best States ------------- Heat Dissipation 28 Energy Generation 10 Energy Capacity 250 Matter Stores 300 Matter Capacity 300 Sight Range 16 Terrain Scan Density 10 Evasion (%) 40 Targeting Accuracy 5 Recoil Reduction 2 Item Schematics ----------------- None Robot Schematics ------------------ None Fabricated ------------ Nothing Repaired ---------- Nothing Alien Tech Used ----------------- None Achievements -------------- None Challenges ------------ None Game ------ Seed HackingSuperquantumKatana Manual? 0 Play Time 00:08:44 Cumulative 193.0 hours Start 2025.09.30 @ 09:21:21 End 2025.09.30 @ 09:33:56 Sessions 1 Manual Loads 0 Difficulty Rogue Special Mode None Game No. 242 Rogue 242 Adventurer 0 Explorer 0 Win Type - Total 3 Types 3/0/0/0/0/0/0/0/0/0 Lore% 70 Gallery% 56 Achievement% 54 Wizard Run 0 Options --------- Layout 1 ASCII 0 Keyboard 1 Movement Numpad Keybinds 0 Fullscreen 1 Font 24/Smallcaps Map View 50x35 Zoom Use 0% Tactical HUD 1 Map Filters NONE Filters NONE Steam 1 RUN: 416c5610-c5bf-4ad3-ba8e-cb828cfe0973